{"text_format":"1","workbook":"xlsx","n_sheets":6,"sheets":["Info","Frontespizio","Archivio lavorazioni","Elenco prezzi","Edit","Computo metrico"],"not_rendered":{"charts":0,"images":1,"macros":1,"external_links":0,"defined_names":6,"comments":0,"pivot_tables":0},"unopened":[],"bounds":{"document_bytes":16777216,"sheet_cells":100000,"rows_first":2000,"rows_last":500,"rows_between":2000,"halvings":0,"cell_chars":16384,"cell_head_chars":4096},"cells_cut":0,"cells_raw":0,"read":"whole","date_system":"1900"}

{"sheet":"Info","index":0,"n_rows":10,"n_cols":1,"rows_kept":10,"cut":false,"hidden":false,"merged":[[7,0,7,1],[9,0,9,1],[6,0,6,1],[0,0,0,1],[2,0,2,1],[4,0,4,1],[3,0,3,1],[5,0,5,1]]}
["Co.Me. (Computo Metrico)"]
[]
["Co.Me. (Computo Metrico) è un foglio excel progettato per la redazione di elenchi prezzi e computi metrici in maniera semplice, veloce e personalizzata."]
[]
["Co.Me. è stato creato per consentire ai tecnici la creazione di un proprio archivio delle lavorazioni dal quale attingere per redigere gli elenchi prezzi e i computi metrici necessari per i propri progetti automatizzando i calcoli e i conteggi."]
[]
["Per informazioni, richieste o segnalazione errori:"]
["studiotecnico@ingcapestrano.it"]
[]
["Si declina qualsiasi errore derivante dall’utilizzo di Co.Me."]

{"sheet":"Frontespizio","index":1,"n_rows":33,"n_cols":2,"rows_kept":33,"cut":false,"hidden":false,"merged":[]}
[]
[]
[null,"COMUNE DI BARI (BA)"]
[]
[]
[]
[]
[]
[]
[]
[null,"COMPUTO METRICO"]
[]
[]
[]
[]
[]
[null,"OGGETTO:"]
[null,"Manutenzione straordinaria dell'unità immobiliare ubicata in via delle Rose n. 10"]
[]
[]
[]
[]
[]
[null,"Committente:"]
[null,"Mario Rossi"]
[]
[]
[]
[]
[]
[null,"Data"]
[]
[null,"Tecnico"]

{"sheet":"Archivio lavorazioni","index":2,"n_rows":95,"n_cols":5,"rows_kept":95,"cut":false,"hidden":false,"merged":[[0,0,1,0],[0,1,1,1],[0,2,1,2],[0,3,1,3],[0,4,1,4]]}
["Nr.","Cod.","Lavorazione","U.M.","Prezzo"]
[]
[0,null,"DEMOLIZIONI"]
[1,"DM01","Demolizione della muratura portante perimetrale dello spessore di 50 cm in tufo, mattoni forati, pieni, ecc., eseguita a mano e/o con l'ausilio di mezzi meccanici. Sono compresi: la rimozione di intonaco, rivestimenti, tubazioni passanti di qualsiasi genere, il carico, il trasporto del materiale da riutilizzare per la realizzazione del basamento dell'area esterna o l'accatastamento nell'ambito del cantiere e il trasporto del materiale di risulta in apposita discarica, l'onere per lo smaltimento e tutto ciò che è necessario per dare il lavoro finito a perfetta regola d'arte.","mq.",30]
[2,"DM02","Demolizione di parete divisoria interna in tufo, mattoni forati, pieni, etc., a qualsiasi altezza eseguita a mano e/o con l'ausilio di mezzi meccanici. Sono compresi: la rimozione di intonaco, rivestimenti, tubazioni passanti di qualsiasi genere, il carico e il trasporto del materiale di risulta in apposita discarica, l'onere per lo smaltimento e tutto ciò che è necessario per dare il lavoro finito a perfetta regola d'arte.","mq.",20]
[3,"DM04","Demolizione del caminetto. Sono compresi: il carico, il trasporto, l'accatastamento del materiale nell'ambito del cantiere e il trasporto del materiale di risulta in apposita discarica, l'onere per lo smaltimento e tutto ciò che è necessario per dare il lavoro finito a perfetta regola d'arte."]
[4,"DM05","Demolizione del piano di lavoro in opera. Sono compresi: il carico, il trasporto e l'accatastamento del materiale nell'ambito del cantiere e il trasporto del materiale di risulta in apposita discarica, l'onere per lo smaltimento e tutto ciò che è necessario per dare il lavoro finito a perfetta regola d'arte."]
[0,null,"RIMOZIONI"]
[5,"RM01","Rimozione di soglie e stipiti dei vani porta e finestra presenti lungo la muratura perimetrale. Sono compresi: la necessaria assistenza muraria, l'accatastamento nell'ambito del cantiere, il carico e il trasporto del materiale di risulta in apposita discarica, l'onere per lo smaltimento e tutto ciò che è necessario per dare il lavoro finito a perfetta regola d'arte.","cad.",30]
[6,"RM02","Rimozione di soglie e stipiti dei vani porta interni. Sono compresi: la necessaria assistenza muraria, l'accatastamento nell'ambito del cantiere, il carico e il trasporto del materiale di risulta in apposita discarica, l'onere per lo smaltimento e tutto ciò che è necessario per dare il lavoro finito a perfetta regola d'arte.","cad.",30]
[7,"RM03","Rimozione di infissi, telai, controtelai, mostrine, cassonetti, lucernai, vetrate e sistemi di oscuramento di qualunque forma e specie anche se incompleti. Sono compresi: la necessaria assistenza muraria, lo smontaggio, l'accatastamento nell'ambito del cantiere, il carico, il trasporto in apposita discarica, l'onere per lo smaltimento e tutto ciò che è necessario per dare il lavoro finito","cad.",20]
[8,"RM04","Rimozione di porta, telaio, controtelaio e mostrine. Sono compresi: la necessaria assistenza muraria, lo smontaggio, l'accatastamento nell'ambito del cantiere, il carico, il trasporto in apposita discarica, l'onere per lo smaltimento e tutto ciò che è necessario per dare il lavoro finito.","cad.",10]
[9,"RM05","Rimozione dei servizi igienico-sanitari e dello scaldabagno, compreso l'impianto esistente sottotraccia, il carico, il trasporto in apposita discarica, l'onere per lo smaltimento del materiale di risulta e tutto ciò che è necessario per dare il lavoro finito.","cad.",32]
[10,"RM06","Rimozione senza recupero del rivestimento a parete e del sottostante intonaco. Sono compresi: il carico, l'accatastamento nell'ambito del cantiere e il trasporto del materiale di risulta in apposita discarica, l'onere per lo smaltimento e tutto ciò che è necessario per dare il lavoro finito a perfetta regola d'arte.","mq.",10]
[11,"RM07","Rimozione e smaltimento del battiscopa esistente. Sono compresi: il carico e il trasporto del materiale di risulta in apposita discarica, l'onere per lo smaltimento e tutto ciò che è necessario per dare il lavoro finito a perfetta regola d'arte.","ml.",3]
[12,"RM08","Rimozione di corpo scaldante. Sono compresi: lo smontaggio, l'accatastamento, il carico, il trasporto in apposita discarica, l'onere per lo smaltimento e tutto ciò che è necessario per dare il lavoro finito.","cad.",5]
[13,"RM09","Rimozione dell'impianto elettrico interno esistente. Sono compresi: il carico, il trasporto in apposita discarica, l'onere per lo smaltimento del materiale di risulta e tutto ciò che è necessario per dare il lavoro finito.","a corpo",350]
[14,"RM10","Rimozione di opere in ferro, quali ringhiere, grate, cancelli, ecc. Sono compresi: le opere murarie, il carico, il trasporto, lo scarico a rifiuto fino a qualsiasi distanza del materiale di risulta e tutto quanto altro occorre per dare il lavoro finito e a perfetta regola d'arte.","a corpo",20]
[0,null,"TAMPONATURE"]
[15,"TM01","Tamponamento di porzione di vano porta e/o finestra presente lungo la muratura perimetrale esterna dello spessore di 50 cm mediante posa in opera di muratura retta in elevato in laterizio, delle dimensioni correnti, posta in opera con malta comune o cementizia e giunti non eccedenti lo spessore di 2 cm, a qualsiasi altezza. Sono compresi: la posa di uno strato impermeabile bituminoso alla base della tramezzatura mediante applicazione di uno strato di polimero elastomerico (spessore 4 mm) e l'eventuale cernita dei blocchetti, la formazione di architravi, spallette, riseghe, ammorsature, lo sfrido, l'uso dei ponteggi di servizio ed il loro disarmo, il trasporto, lo scarico dall'automezzo, l'accatastamento, il tiro in alto, l'avvicinamento al luogo di posa e tutto ciò che è necessario per dare il lavoro finito a perfetta regola d'arte.","mq.",50]
[16,"TM02","Tamponamento di vano porta interno mediante posa in opera di muratura retta in elevato in laterizio, delle dimensioni correnti, posta in opera con malta comune o cementizia e giunti non eccedenti lo spessore di 2 cm, a qualsiasi altezza. Sono compresi: la posa di uno strato impermeabile bituminoso alla base della tramezzatura mediante applicazione di uno strato di polimero elastomerico (spessore 4 mm) e l'eventuale cernita dei blocchetti, la formazione di architravi, spallette, riseghe, ammorsature, lo sfrido, l'uso dei ponteggi di servizio ed il loro disarmo, il trasporto, lo scarico dall'automezzo, l'accatastamento, il tiro in alto, l'avvicinamento al luogo di posa e tutto ciò che è necessario per dare il lavoro finito a perfetta regola d'arte.","mq.",30]
[0,null,"APERTURA VANI"]
[17,"AV01","Realizzazione dell'apertura di vano finestra lungo la muratura perimetrale mediante taglio della muratura in tufo. Sono compresi: la fornitura e posa in opera dell'architrave in c.a., la rimozione di intonaco, rivestimenti, tubazioni passanti di qualsiasi genere, il carico, il trasporto del materiale da riutilizzare per la realizzazione del basamento dell'area esterna o l'accatastamento nell'ambito del cantiere e il trasporto del materiale di risulta in apposita discarica, l'onere per lo smaltimento e tutto ciò che è necessario per dare il lavoro finito a perfetta regola d'arte.","a corpo",200]
[18,"AV02","Apertura di vano porta interno (dimensioni 1.00 m x 2.20 m). Sono compresi: la fornitura e posa in opera dell'architrave in c.a., il carico e il trasporto del materiale di risulta in apposita discarica, l'onere per lo smaltimento e tutto ciò che è necessario per dare il lavoro finito a perfetta regola d'arte","a corpo",180]
[0,null,"ARCHITRAVI"]
[19,"AT01","Fornitura e posa in opera di architrave in c.a. o laterizio per porte o finestre comprendendo ogni onere per l'eventuale demolizione della muratura e compreso ripristino. E' compreso tutto ciò che è necessario per dare il lavoro finito a perfetta regola d'arte.","cad.",150]
[0,null,"REALIZZAZIONE MURATURE"]
[20,"MR01","Realizzazione di chiusura verticale esterna (con spessore in continuità con la muratura esistente esistente) realizzata con laterizio termico, camera d'aria da 3 cm, pannello EPS da 8 cm e tufella. E' compreso tutto il necessario per dare l'opera finita a perfetta regola d'arte.","mq.",55]
[21,"MR02","Realizzazione di muratura retta in elevato in laterizio, delle dimensioni correnti, posta in opera con malta comune o cementizia e giunti non eccedenti lo spessore di 2 cm, a qualsiasi altezza. E' compresa la posa di uno strato impermeabile bituminoso alla base della tramezzatura mediante applicazione di uno strato di polimero elastomerico \"Testudo Spunbond\" della Index (spessore 4 mm) e l'eventuale cernita dei blocchetti, la formazione di architravi, spallette, riseghe, ammorsature, lo sfrido, l'uso dei ponteggi di servizio ed il loro disarmo, il trasporto, lo scarico dall'automezzo, l'accatastamento, il tiro in alto, l'avvicinamento al luogo di posa e tutto ciò che è necessario per dare il lavoro finito a perfetta regola d'arte.","mq.",32]
[0,null,"INTONACO, TINTEGGIATURA, PITTURAZIONE"]
[22,"IT01","Spicconatura e rimozione dell'intonaco interno a qualsiasi altezza dalle superfici estradossali dei solai. Sono compresi: il carico, l'accatastamento nell'ambito del cantiere e il trasporto del materiale di risulta in apposita discarica, l'onere per lo smaltimento e tutto ciò che è necessario per dare il lavoro finito a perfetta regola d'arte.","mq.",6]
[23,"IT02","Fornitura e posa in opera di intonaco civile premiscelato e di rete portaintonaco con strato finale di stucco eseguita a qualsiasi altezza su superfici verticali rette, orizzontali e inclinate. Realizzato con un primo strato di minimo 10 mm di malta dosata a 400 kg di cemento e con un secondo strato di spessore minimo 8 mm in malta cementizia fino a 600 kg, tirato in piano con regolo e fratazzo, applicati previa disposizione di guide e rifinito con sovrastante strato di colla della stessa malta passata al crivello fino e lisciata con fratazzo metallico, compresa l'esecuzione dei raccordi negli angoli, la profilatura degli spigoli e la fornitura ed uso dei materiali ed attrezzi necessari. E' incluso l'uso dei ponteggi necessari e il loro disarmo. Sono compresi: il trasporto, lo scarico dall'automezzo, l'accatastamento, il tiro in alto, l'avvicinamento al luogo di posa di tutti i materiali e mezzi necessari, la fornitura ed uso di materiali ed attrezzi, la pulizia finale e tutto ciò che è necessario per dare il lavoro finito a perfetta regola d'arte.","mq.",16]
[24,"IT03","Rasatura della superficie interna intonacata. E' incluso l'uso dei ponteggi necessari e il loro disarmo. Sono compresi: il materiale di consumo, il trasporto, lo scarico dall'automezzo, l'accatastamento, il tiro in alto, l'avvicinamento al luogo di posa di tutti i materiali e mezzi necessari e tutto ciò che è necessario per dare il lavoro finito a perfetta regola d'arte.","mq.",4]
[25,"IT04","Fornitura ed applicazione di una mano di fissativo e di due mani di pittura lavabile (tipo Max Mayer) eseguita a pennello. Sono compresi: il materiale di consumo e il tutto il necessario per dare il lavoro finito a perfetta regola d'arte. ","mq.",10]
[26,"IT05","Fornitura e posa in opera di due mani di pittura per esterni previo il ripristino delle parti ricostruite o ammalorate e successiva applicazione di una mano di fissativo. E' compreso tutto il necessario per dare il lavoro finito e a perfetta regola d'arte.","mq.",12]
[27,"RS01","Rasatura dell'intradosso dei solai limitatamente alle superfici occorrenti per i vari ripristini. Da valutarsi in sede di realizzazione dei lavori, comprensiva di eventuali stuccature occorrenti per la preparazione del supporto. E' compreso il materiale di consumo e e il tutto il necessario per dare il lavoro finito a perfetta regola d'arte.","mq."]
[0,null,"RIVESTIMENTI"]
[28,"RV01","Posa in opera di rivestimento a parete fornito dalla Committenza. Sono compresi: il collante per la posa, la resina per la sigillatura delle fughe e il tutto il necessario per dare il lavoro finito a perfetta regola d'arte.","mq.",32]
[29,"RV02","Fornitura e posa del rivestimento della scalinata in travertino (spessore non inferiore a 5 cm) da posare in corrispondenza delle alzate e delle pedate. Sono compresi: il collante per la posa in opera, la resina per la sigillatura delle fughe e tutto ciò che è necessario per dare il lavoro finito a perfetta regola d'arte.","mq.",100]
[0,null,"PAVIMENTAZIONE"]
[30,"PV01","Posa in opera di pavimentazione fornita dalla Committenza. Sono compresi: il collante per la posa, la resina per la sigillatura delle fughe e il tutto il necessario per dare il lavoro finito a perfetta regola d'arte.","mq.",25]
[31,"PV02","Posa in opera di pavimentazione per esterni fornita dalla Committenza. E' compreso il collante per la posa, la resina per la sigillatura delle fughe e il tutto il necessario per dare il lavoro finito a perfetta regola d'arte.","mq.",25]
[0,null,"BATTISCOPA"]
[32,"BT01","Posa in opera di battiscopa fornito dalla Committenza. Sono compresi: il collante per la posa, la resina per la sigillatura delle fughe e tutto il necessario per dare il lavoro finito a perfetta regola d'arte.","ml.",6]
[0,null,"OPERE IN CARTONGESSO"]
[33,"CG01","Fornitura e posa in opera di cartongesso per la realizzazione di velette, porta faretti, penisole e/o lavorazioni curvilinee, è compresa la rassatura (due mani)  e tutto ciò che è necessario per dare il lavoro finito a perfetta regola d'arte.","mq.",40]
[0,null,"PORTE E INFISSI"]
[34,"PI01","Fornitura e posa in opera di controtelaio per porta scorrevole a scomparsa di dimensione standard 70 cm x 210 cm.","cad.",800]
[35,"PI02","Fornitura e posa in opera di controtelaio per porta scorrevole a scomparsa di dimensione standard 90 cm x 210 cm.","cad.",850]
[36,"PI03","Fornitura e posa in opera di controtelaio per porta a battente di dimensioni standard 70-90 cm x 210 cm.","cad.",20]
[37,"PI04","Fornitura e posa in opera di controtelaio per porta a battente di dimensioni 130 cm x 210 cm.","cad.",40]
[38,"PI05","Fornitura e posa in opera di porta di ingresso. E' compreso tutto ciò che è necessario per dare il lavoro finito a perfetta regola d'arte.","mq.",450]
[39,"PI06","Fornitura e posa in opera porta interna a battente. E' compreso tutto ciò che è necessario per dare il lavoro finito a perfetta regola d'arte.","mq.",233]
[40,"PI07","Fornitura e posa in opera porta interna scorrevole. E' compreso tutto ciò che è necessario per dare il lavoro finito a perfetta regola d'arte.","mq.",400]
[41,"PI08","Fornitura e posa in opera di infisso esterno. E' compreso tutto ciò che è necessario per dare il lavoro finito a perfetta regola d'arte.","mq.",320]
[42,"PI09","Fornitura e posa in opera di sistemi di oscuramento per infisso. E' compreso tutto ciò che è necessario per dare il lavoro finito a perfetta regola d'arte.","mq.",50]
[0,null,"INFISSI"]
[43,"IN01","Fornitura e posa in opera di infissi a taglio termico con doppio vetro e camera d'aria in argon corrispondenti alla normativa vigente in materia di risparmio energetico.","a corpo"]
[0,null,"SOGLIE E STIPITI"]
[44,"SS01","Fornitura e posa in opera di soglia, stipiti e mostrine in travertino (spessore non inferiore a 2 cm) da posare in corrispondenza delle aperture presenti sulla muratura perimetrale. Sono compresi: il collante per la posa in opera, la resina per la sigillatura delle fughe e tutto ciò che è necessario per dare il lavoro finito a perfetta regola d'arte.","mq.",80]
[0,null,"MASSETTO"]
[45,"MS01","Fornitura e posa in opera di massetto di sottofondo perfettamente liscio e livellato adatto a ricevere la posa del sistema di impianto di riscladamento a pavimento. Caratteristiche: a base di argilla espansa (assorbimento inferiore al 2% a 30 min secondo UNI 7549), ad asciugamento di tipo medio (3% di umidità esidua a ca. 35 giorni dal getto per uno spessore di 5 cm), a basso ritiro e densità in opera ca. 1.000 kg/m³, resistenza media a compressione a 28 giorni 150 kg/cm², pompabile con pompe tradizionali da sottofondo, steso, battuto, spianato e lisciato nello spessore minimo di 5 cm, in opera. E' compreso tutto il necessario per dare il lavoro finito e a perfetta regola d'arte.","mq.",13]
[46,"MS02","Fornitura e posa in opera di massetto tradizionale con miscela di inerti selezionati e cemento dosato in q.li 2,5 al mq, spessore 4-5 cm con finitura superficiale a frattazzo. E' compreso tutto il necessario per dare il lavoro finito e a perfetta regola d'arte.","mq.",14]
[47,"MS03","Realizzazione di massetto in sabbia e cemento armato per esterno. E' compresa la rete elettrosaldata ø 15 con maglia di 15 cm e tutto il necessario per dare il lavoro finito e a perfetta regola d'arte.","mq.",18]
[48,"MS04","Fornitura e posa in opera di idoneo massetto successivo alla posa in opera dell'impianto di riscaldamento a pavimento, preparato con sabbia, ghiaino, cemento e aggiunta di liquido superfluidificante. Caratteristiche: impasto preparato con un 60% circa di sabbia, 40% circa di ghiaino (granulometria consigliata 8-12 mm, max 16 mm), cemento costituito da almeno 300 kg per mc, rapporto A/C (Acqua/Cemento) di circa 0,40, additivo superfluidificante dosato per almeno 0,7-0,9 kg litro ogni 100 kg di cemento aggiunto manualmente o tramite dosatore in betoniera. E' compresa la rete elettrosaldata antiritiro e tutto il necessario per dare il lavoro finito e a perfetta regola d'arte.","mq.",17]
[0,null,"ASSISTENZA MURARIA"]
[49,"AM01","Assistenza muraria per la realizzazione dell'impianto idrico-sanitario, dell'impianto termico, dell'impianto elettrico, dell'eventuale impianto di climatizzazione estiva e per l'installazione dei nuovi infissi esterni.","a corpo",3500]
[0,null,"LAVORAZIONI VARIE"]
[50,"LV01","Compattazione del piano di posa dell'area esterna (sottofondo) nei tratti riempiti col materiale di risulta fino a raggiungere in ogni punto il valore della densità idone alla successiva posa degli strati sovrastanti. E' compreso tutto ciò che è necessario per dare il lavoro finito a perfetta regola d'arte.","mq.",10]
[51,"LV02","Realizzazione della scalinata in tufo o mattoni pieni di collegamento tra il piazzale e l'area esterna. E' compresa la formazione di architravi, spallette, riseghe, ammorsature, lo sfrido, il trasporto, lo scarico dall'automezzo, l'accatastamento, l'avvicinamento al luogo di posa e quanto occore per dare il lavoro finito e a perfetta regola d'arte.","mc.",80]
[0,null,"IMPIANTO IGIENICO-SANITARIO"]
[52,"IS01","Fornitura e posa in opera di cassetta di scarico water tipo GEBERIT TWICO da incasso della capacità di 10 lt. per erogazione di 3-4 lt. e/o 6-9 lt., completa di doppio pulsante in materiale plastico di colore bianco, canotto cromato, rosone per attaco water e quanto altro necessario per dare il lavoro perfettamente finito e funzionante a regola d’arte.","cad.",80]
[53,"IS02","Fornitura e posa in opera di punto attacco per alimentazione di apparecchi igienico-sanitari con acqua calda e/o fredda (solo fredda sino alla cassetta di scarico del vaso a sedere) eseguito, dal collettore (quest'ultimo escluso) fino all'apparecchio erogatore, con tubazione in rame rivestito con guaina in PVC o in ferro zincato nei diametri indicati negli elaborati progettuali, completo di raccordi, curve, gomiti, pezzi speciali. E' compresa la coibentazione delle tubazioni di adduzione dell'acqua calda con guaina elastomerica a celle chiuse avente spessore di 6 mm e quant’altro necessario per dare il lavoro finito a perfetta regola d'arte.","cad.",120]
[54,"IS04","Fornitura e posa in opera di vaso igienico in porcellana vetrificata fornito dalla Committenza. Conforme ai prodotti in uso nel mercato, del tipo ad  aspirazione o a cacciata.  Sono compresi: allettamento sul pavimento con  cemento, staffature in acciaio da installare sotto traccia, fissaggio con viti e borchie d’acciaio cromato, guarnizioni, sedile e coperchio. E' compreso tutto ciò che è necessario per dare il lavoro finito a perfetta regola d'arte.","cad.",250]
[55,"IS04","Fornitura e posa in opera di bidet in porcellana vetrificata fornito dalla Committenza. Conforme ai prodotti in uso nel mercato e dotato di monoforo. Sono compresi: piletta, scarico automatico a pistone, sifone a bottiglia, flessibili a parete corredati del relativo rosone in ottone cromato del tipo pesante, morsetti, bulloni, viti cromate, raccordi alle tubazioni d'allaccio per l'adduzione dell'acqua calda e fredda, staffature in acciaio da installare sottotraccia, viti e borchie di acciaio cromato di fissaggio e guarnizioni, la rubinetteria e le tubazioni di allaccio e di scarico. E' compreso tutto ciò che è necessario per dare il lavoro finito a perfetta regola d'arte.","cad.",250]
[56,"IS05","Fornitura e posa in opera di lavabo in porcellana vetrificata fornito dalla Committenza. Conforme ai prodotti in uso nel mercato e da installare su due mensole a sbalzo in ghisa smaltata, dotato di monoforo per la rubinetteria. Sono compresi: piletta, scarico automatico a pistone, sifone a bottiglia, flessibili a parete corredati del relativo rosone in ottone cromato del tipo pesante, morsetti, bulloni, viti cromate, etc., la rubinetteria e le tubazioni di allaccio e di scarico. E' compreso tutto ciò che è necessario per dare il lavoro finito a perfetta regola d'arte.","cad.",250]
[57,"IS06","Fornitura e posa in opera di piatto per doccia in gres porcellanato fornito dalla Committenza. Conforme ai prodotti in uso nel mercato e da installare sopra al pavimento a semincasso. Sono compresi: piletta e griglia di scarico ad angolo cromate di raccordo alle tubazioni di allaccio, superficie antisdrucciolevole, la rubinetteria e le tubazioni di allaccio e di scarico. E' compreso tutto ciò che è necessario per dare il lavoro finito a perfetta regola d'arte.","cad.",250]
[58,"IS07","Fornitura e posa in opera di punto scarico per apparecchi igienico-sanitari. E' compreso tutto ciò che è necessario per dare il lavoro finito a perfetta regola d'arte.","cad.",95]
[59,"IS08","Realizzazione di impianto idrico con tubazione multistrato con collettore complanare, chiusure a valvole di intercettazione per ogni singolo attacco del bagno e della cucina, raccorderia in ottone giallo. E' compreso tutto il necessario per dare il lavoro finito a perfetta regola d'arte.","a corpo",3500]
[0,null,"IMPIANTO TERMICO E/O ADDUZIONE GAS"]
[60,"IT01","Realizzazione impianto termico con tubazione in multistrato rispondente alla normativa vigente, con collettore complanare e valvole termostatiche. E' compreso tutto ciò che è necessario per dare il lavoro finito a perfetta regola d'arte.","a corpo",2000]
[61,"IT02","ornitura e posa in opera di caldaia a condensazione e di canna fumaria a tetto ad uso esclusivo. E' compreso tutto ciò che è necessario per dare il lavoro finito a perfetta regola d'arte.","a corpo",1200]
[62,"IT03","Fornitura e posa in opera di corpi radianti forniti dalla Committenza. E' compreso tutto ciò che è necessario per dare il lavoro finito a perfetta regola d'arte.","cad.",40]
[63,"IT04","Relizzazione di impianto per l'adduzione gas con tubazione in acciaio zincato rispondente all'attuale normativa in materia e dotato di valvole di intercettazione per la chiusura della linea caldaia e cucina. E' compreso tutto ciò che è necessario per dare il lavoro finito a perfetta regola d'arte.","a corpo",1000]
[64,"IT05","Fornitura e posa in opera dell'impianto di riscaldamento a pavimento radiante con caldaia autonoma a gas, eslusa l'assistenza muraria, costituito da:\n1) gruppo termico murale a gas del tipo a premiscelazione con circuito stagno e flusso\nforzato idoneo per riscaldamento e produzione acqua calda con scambiatore istantaneo,\navente una potenza utile per riscaldamento non inferiore al fabbisogno dell'impianto ed\nuna potenza utile per acqua calda non inferiore a 23,3 kW;\n2) tubazione di adduzione al gas dal contatore alla caldaia, compreso la derivazione per\nalimentare la cucina a gas;\n3) distribuzione con tubazione di rame ai collettori del pavimento radiante;\n4) cassette di alloggiamento dei collettori con adeguato sportello;\n5) rivestimento isolante di tutte le tubazioni in rame realizzato in base alla normativa\nvigente;\n6) posa in opera nei bagni dei corpi scaldanti e/o termoarredi forniti dalla Committenza;\n7) pavimento radiante realizzato con:\n- strato di guaina di protezione in polietilene ad alta densità e antiurto dello spessore di\n0.15 mm per la separazione dall'umidità di risalità;\n- fascia perimetrale di dilatazione per l’isolamento perimetrale dei sottofondi in\npolietilene reticolato espanso a celle chiuse con densità 30 kg/mc circa, dotata di velo\ninpolietilene per il sormonto sul pannello radiante, di altezza 15 cm circa, e spessore 8\nmm circa (tipo \"Isolmant fascia perimetrale radiante\"; la posa in opera deve coprire tutti\ni muri, colonne o altri componenti edilizi presenti negli ambienti dove verrà posato\nl’impianto di riscaldameno a pavimento e deve essere saldamente fissata in verticale\nper mezzo dello strato adesivo posto sul retro; deve inoltre essere appoggiata alla base\ndi supporto e continuare fin oltre l’altezza del pavimento finito;\n- pannelli radianti a pavimento preformato (tipo \"Uponor Minitec\") in polistirolo\ncompresso, con fori di adeguata dimensione per l’annegamento del massetto\nautolivellante;\n- tubazione in polietilene ad alta densità;\n- testine termiche con termostato e misuratore di portata d'acqua, rete metallica a\nmaglia di 10 cm con piedino distanziatore, clips di fissaggio, fissarete;\n8) TERMOREGOLAZIONE con regolatore climatico, sonda esterna e sonda di mandata;\n9) VALVOLE ED ACCESSORI necessari alla corretta installazione e funzionamento.\nIl tutto fornito e posto in opera nel pieno rispetto delle vigenti normative. Sono\ncompresi: tutte le opere di costruzione e installazione della canna\nfumaria per lo scarico dei prodotti della combustione; l'apertura e la chiusura delle\ntracce e tutto il necessario per dare il lavoro finito e a perfetta regola d'arte.","a corpo",7000]
[0,null,"IMPIANTO ELETTRICO"]
[65,"IE01","Fornitura e posa in opera di impianto elettrico costitutito dalla distribuzione principale a partire dalla montante proveniente dal contatore. E' compreso il quadro con l'interruttore generale automatico magnetotermico differenziale e gli interruttori magnetotermici per linea luce, linea prese 16A, linea elettrodomestici 16A, linea condizionamento 16A. Lungo le dorsali dovranno essere previste cassette di derivazione in numero e posizione tale da permettere una distribuzione dell'impianto elettrico di tipo radiale, con tubazioni incassate nel pavimento e nelle pareti secondo le indicazioni della D.L. ovvero con dorsali da posare in canalina a partire dal quadro utilizzando l'intradosso del solaio. Tutti i cavi dovranno essere posizionati in apposite tubazioni in polivinicloruro (PVC) di tipo flessibile o rigido in caso di linee a soffitto. L'impianto dovrà essere rispondente alle norme vigenti. E' compreso tutto ciò che è necessario per dare il lavoro finito e a perfetta regola d'arte.","a corpo",1000]
[66,"IE02","Realizzazione di impianto sottotraccia per punto luce a parete o a soffitto in tubazione in PVC pesante di adeguato diametro e composto da  conduttori sfilabili di sezione idonea per linee e terra, isolati con materiale termoplastico con grado di isolamento adeguato rispetto alla normativa vigente, completo di cassetta portafrutto in resina per il fissaggio apparecchio di comando, placca di supporto in materia isolante e placca di rivestimento in resina. E' compreso tutto ciò che è necessario per dare il lavoro finito a perfetta regola d'arte.","cad.",35]
[67,"IE03","Realizzazione di impianto elettrico rispondente al DM 37/08 costituito da: impianto sottotraccia in tubazione corrugata e cassette di derivazione, quadro elettrico generale da 24 moduli della Gewiss completo di differenziale salvavita e magnetotermici (della linee luce, prese, cucina, illuminazione esterna, CDZ, caldaia e automazione cancello), n. 20 punti luce, n. 40 punti presa, n. 6 punti tv, n. 6 punti telefono, n. 2 videocitofoni, n. 1 cronotermostato, n. 3 luci d'emergenza. E' compreso tutto il necessario per dare il lavoro finito a perfetta regola d'arte.","a corpo"]
[68,"IE04","Realizzazione di impianto sottotraccia per derivazione di presa a spina con presa del tipo modulare da incasso con frutto racchiuso entro materiale plastico antiurto, in tubazione in PVC pesante di adeguato diametro, composto da conduttori sfilabili di sezione idonea per linee e terra, isolati con materiale termoplastico con grado di isolamento adeguato rispetto alla normativa vigente, completo di cassetta portafrutti in resina per fissaggio apparecchi, placca di supporto in materiale isolante e placca di rivestimento in resina. E' compreso tutto ciò che è necessario per dare il lavoro finito a perfetta regola d'arte.","cad.",38]
[69,"IE05","Impianto TV per civile abitazione con sistema di distribuzione. Sono compresi: conduttori coassiale con carico di 24/06/2010 resistenza pari a 75 Ohm/km a 20 C isolamento con guaina di PVC di colore bianco, montante linea TV, palo per antenna, antenna TV UHF/VHF. Il tutto progettato ed installato in conformità con le normative vigenti. E' compreso tutto ciò che è necessario per dare il lavoro finito a perfetta regola d'arte.","a corpo",500]
[70,"IE06","Fornitura e posa in opera di impianto citofonico per unità modulari ad 1 pulsante di chiamata. Sono compresi: gli oneri per il montaggio, cablatura e collaudo e tutto ciò che è necessario per dare il lavoro finito a perfetta regola d'arte","a corpo",600]
[71,"IE07","Predisposizione dell'impianto di allarme. E' compreso tutto ciò che è necessario per dare il lavoro finito a perfetta regola d'arte.","a corpo",500]
[72,"IE07","Predisposizione dell'impianto di illuminazione esterno. E' compreso tutto ciò che è necessario per dare il lavoro finito a perfetta regola d'arte","a corpo",500]
[73,"IE08","Realizzazione di impianto elettrico rispondente al DM 37/08 costituito da: impianto sottotraccia in tubazione corrugata e cassette di derivazione, quadro elettrico generale da 24 moduli della Gewiss completo di differenziale salvavita e magnetotermici (della linee luce, prese, cucina, illuminazione esterna, caldaia e automazione cancello), n. 20 punti luce, n. 40 punti presa, n. 6 punti tv, n. 6 punti telefono, n. 2 videocitofoni, n. 3 luci d'emergenza, predisposizione per n. 3 condizionatori, comando centralizzato per tapparelle motorizzato. E' compreso tutto il necessario per dare il lavoro finito a perfetta regola d'arte.","a corpo"]

{"sheet":"Elenco prezzi","index":3,"n_rows":4,"n_cols":5,"rows_kept":4,"cut":false,"hidden":false,"merged":[[0,1,1,1],[0,2,1,2],[0,3,1,3],[0,4,1,4],[0,0,1,0]]}
["Nr.","Cod.","Lavorazione","U.M.","Prezzo"]
[]
["0",null,"DEMOLIZIONI"]
[1,{"$f":"'Archivio lavorazioni'!$B$5","v":"DM02"},{"$f":"'Archivio lavorazioni'!$C$5","v":"Demolizione di parete divisoria interna in tufo, mattoni forati, pieni, etc., a qualsiasi altezza eseguita a mano e/o con l'ausilio di mezzi meccanici. Sono compresi: la rimozione di intonaco, rivestimenti, tubazioni passanti di qualsiasi genere, il carico e il trasporto del materiale di risulta in apposita discarica, l'onere per lo smaltimento e tutto ciò che è necessario per dare il lavoro finito a perfetta regola d'arte."},{"$f":"'Archivio lavorazioni'!$D$5","v":"mq."},{"$f":"'Archivio lavorazioni'!$E$5","v":20}]

{"sheet":"Edit","index":4,"n_rows":22,"n_cols":13,"rows_kept":22,"cut":false,"hidden":false,"merged":[[9,5,9,9],[9,10,9,11],[0,10,0,11],[0,5,0,9],[3,2,3,4],[4,2,4,4]]}
[null,null,null,null,null,"Dimensioni",null,null,null,null,"Importi"]
["Nr.","Cod.","Lavorazione","U.M.","Prezzo","par. ug.","lunghezza","larghezza","h/peso","Quantità","Unitario","Totale"]
[2,{"$f":"'Archivio lavorazioni'!$B$5","v":"DM02"},{"$f":"'Archivio lavorazioni'!$C$5","v":"Demolizione di parete divisoria interna in tufo, mattoni forati, pieni, etc., a qualsiasi altezza eseguita a mano e/o con l'ausilio di mezzi meccanici. Sono compresi: la rimozione di intonaco, rivestimenti, tubazioni passanti di qualsiasi genere, il carico e il trasporto del materiale di risulta in apposita discarica, l'onere per lo smaltimento e tutto ciò che è necessario per dare il lavoro finito a perfetta regola d'arte."},{"$f":"'Archivio lavorazioni'!$D$5","v":"mq."},{"$f":"'Archivio lavorazioni'!$E$5","v":20},null,null,null,null,null,null,null,"xxx"]
[0,null,"MISURAZIONI:",null,null,null,null,null,null,null,null,null,"xxx"]
[0,"−","Singola misurazione",null,null,null,null,null,null,{"$f":"(IF(F5=\"\",\"1\",F5))*(IF(G5=\"\",\"1\",G5))*(IF(H5=\"\",\"1\",H5))*(IF(I5=\"\",\"1\",I5))","v":1},null,null,"xxx"]
[0,null,null,null,null,null,null,null,null,null,null,null,"xxx"]
[0,null,null,null,null,null,null,"Somma",{"$f":"\"(\"&D3&\"):\"","v":"(mq.):"},{"$f":"SUM(J5:J6)","v":1},{"$f":"E3","v":20},{"$f":"J7*K7","v":20},"xxx"]
[0,null,null,null,null,null,null,null,null,null,null,null,"xxx"]
[null,null,null,null,null,null,null,null,null,null,null,null,"xxx"]
[null,null,null,null,null,"TOTALE DELLE LAVORAZIONI:",null,null,null,null,{"$f":"SUMIF('Computo metrico'!L:L, \"<>\")","v":40},null,"xxx"]
[null,null,null,null,null,null,null,null,null,null,null,null,"xxx"]
[null,null,null,null,null,null,null,null,null,null,null,null,"xxx"]
[null,null,"Data",null,null,null,null,"Tecnico",null,null,null,null,"xxx"]
[null,null,null,null,null,null,null," ",null,null,null,null,"xxx"]
[null,null,null,null,null,null,null," ",null,null,null,null,"xxx"]
[null,null,null,null,null,null,null," ",null,null,null,null,"xxx"]
[null,null,null,null,null,null,null," ",null,null,null,null,"xxx"]
[null,null,null,null,null,null,null," ",null,null,null,null,"xxx"]
[null,null,null,null,null,null,null,null,null,null,null,null,"xxx"]
[null,null,null,null,null,null,null,null,null,null,null,null,"xxx"]
[null,null,null,null,null,null,null,null,null,null,null,null,"xxx"]
[null,null,null,null,null,null,null,null,null,null,null,null,"xxx"]

{"sheet":"Computo metrico","index":5,"n_rows":24,"n_cols":12,"rows_kept":24,"cut":false,"hidden":false,"merged":[[10,2,10,4],[15,5,15,9],[15,10,15,11],[0,10,0,11],[0,5,0,9],[3,2,3,4],[4,2,4,4],[9,2,9,4]]}
[null,null,null,null,null,"Dimensioni",null,null,null,null,"Importi"]
["Nr.","Cod.","Lavorazione","U.M.","Prezzo","par. ug.","lunghezza","larghezza","h/peso","Quantità","Unitario","Totale"]
[2,{"$f":"'Archivio lavorazioni'!$B$5","v":"DM02"},{"$f":"'Archivio lavorazioni'!$C$5","v":"Demolizione di parete divisoria interna in tufo, mattoni forati, pieni, etc., a qualsiasi altezza eseguita a mano e/o con l'ausilio di mezzi meccanici. Sono compresi: la rimozione di intonaco, rivestimenti, tubazioni passanti di qualsiasi genere, il carico e il trasporto del materiale di risulta in apposita discarica, l'onere per lo smaltimento e tutto ciò che è necessario per dare il lavoro finito a perfetta regola d'arte."},{"$f":"'Archivio lavorazioni'!$D$5","v":"mq."},{"$f":"'Archivio lavorazioni'!$E$5","v":20}]
[0,null,"MISURAZIONI:"]
[0,"−","Singola misurazione",null,null,null,null,null,null,{"$f":"(IF(F5=\"\",\"1\",F5))*(IF(G5=\"\",\"1\",G5))*(IF(H5=\"\",\"1\",H5))*(IF(I5=\"\",\"1\",I5))","v":1}]
[0]
[0,null,null,null,null,null,null,"Somma",{"$f":"\"(\"&D3&\"):\"","v":"(mq.):"},{"$f":"SUM(J5:J6)","v":1},{"$f":"E3","v":20},{"$f":"J7*K7","v":20}]
[0]
[2,{"$f":"'Archivio lavorazioni'!$B$5","v":"DM02"},{"$f":"'Archivio lavorazioni'!$C$5","v":"Demolizione di parete divisoria interna in tufo, mattoni forati, pieni, etc., a qualsiasi altezza eseguita a mano e/o con l'ausilio di mezzi meccanici. Sono compresi: la rimozione di intonaco, rivestimenti, tubazioni passanti di qualsiasi genere, il carico e il trasporto del materiale di risulta in apposita discarica, l'onere per lo smaltimento e tutto ciò che è necessario per dare il lavoro finito a perfetta regola d'arte."},{"$f":"'Archivio lavorazioni'!$D$5","v":"mq."},{"$f":"'Archivio lavorazioni'!$E$5","v":20}]
[0,null,"MISURAZIONI:"]
[0,"−","Singola misurazione",null,null,null,null,null,null,{"$f":"(IF(F11=\"\",\"1\",F11))*(IF(G11=\"\",\"1\",G11))*(IF(H11=\"\",\"1\",H11))*(IF(I11=\"\",\"1\",I11))","v":1}]
[0]
[0,null,null,null,null,null,null,"Somma",{"$f":"\"(\"&D9&\"):\"","v":"(mq.):"},{"$f":"SUM(J11:J12)","v":1},{"$f":"E9","v":20},{"$f":"J13*K13","v":20}]
[0]
[]
[null,null,null,null,null,"TOTALE DELLE LAVORAZIONI:",null,null,null,null,{"$f":"SUMIF('Computo metrico'!L:L, \"<>\")","v":40}]
[]
[]
[null,null,"Data",null,null,null,null,"Tecnico"]
[null,null,null,null,null,null,null," "]
[null,null,null,null,null,null,null," "]
[null,null,null,null,null,null,null," "]
[null,null,null,null,null,null,null," "]
[null,null,null,null,null,null,null," "]